[Event "Titled Tuesday Blitz August 08 Late 2023"]
[White "Suleymanli, Aydin"]
[Black "Asadli, Vugar"]
[WhiteFideId "13413937"]
[BlackFideId "13405764"]
[WhiteElo "2953"]
[BlackElo "2836"]
[Result "0-1"]
[Round "5"]
[TimeControl "180+1"]
[Date "2023.08.08"]
[WhiteClock "0:00:01"]
[BlackClock "0:00:07"]
[Board "4"]

1. e4 {[%clk 0:03:00]}  c5 {[%clk 0:02:57]} 2. Nf3 {[%clk 0:03:01]}  e6 {[%clk 0:02:58]} 3. d4 {[%clk 0:02:59]}  cxd4 {[%clk 0:02:58]} 4. Nxd4 {[%clk 0:03:00]}  Nf6 {[%clk 0:02:59]} 5. Nc3 {[%clk 0:02:59]}  Nc6 {[%clk 0:03:00]} 6. Nxc6 {[%clk 0:02:59]}  bxc6 {[%clk 0:03:00]} 7. e5 {[%clk 0:02:59]}  Nd5 {[%clk 0:03:00]} 8. Ne4 {[%clk 0:03:00]}  Qc7 {[%clk 0:02:59]} 9. f4 {[%clk 0:02:59]}  Qb6 {[%clk 0:02:59]} 10. c4 {[%clk 0:03:00]}  Ne3 {[%clk 0:02:59]} 11. Qd3 {[%clk 0:02:58]}  Bb4+ {[%clk 0:02:59]} 12. Bd2 {[%clk 0:02:30]}  Ba6 {[%clk 0:02:58]} 13. Bxb4 {[%clk 0:02:26]}  Qxb4+ {[%clk 0:02:58]} 14. Kf2 {[%clk 0:02:21]}  Qxb2+ {[%clk 0:02:53]} 15. Kxe3 {[%clk 0:02:21]}  Qxa1 {[%clk 0:02:43]} 16. Qa3 {[%clk 0:02:18]}  Qe1+ {[%clk 0:02:18]} 17. Kf3 {[%clk 0:01:51]}  Qd1+ {[%clk 0:02:15]} 18. Be2 {[%clk 0:01:36]}  Qxh1 {[%clk 0:02:14]} 19. Nd6+ {[%clk 0:01:31]}  Kd8 {[%clk 0:02:01]} 20. Nxf7+ {[%clk 0:01:20]}  Ke8 {[%clk 0:02:01]} 21. Nd6+ {[%clk 0:01:10]}  Kd8 {[%clk 0:01:43]} 22. Qxa6 {[%clk 0:00:49]}  Qc1 {[%clk 0:01:02]} 23. Qa5+ {[%clk 0:00:49]}  Ke7 {[%clk 0:01:02]} 24. Qc5 {[%clk 0:00:50]}  Raf8 {[%clk 0:00:44]} 25. Nf5+ {[%clk 0:00:44]}  Kd8 {[%clk 0:00:44]} 26. Qe7+ {[%clk 0:00:45]}  Kc8 {[%clk 0:00:38]} 27. Nd6+ {[%clk 0:00:22]}  Kc7 {[%clk 0:00:38]} 28. g3 {[%clk 0:00:18]}  Qc3+ {[%clk 0:00:38]} 29. Kg2 {[%clk 0:00:11]}  Rb8 {[%clk 0:00:34]} 30. Qxg7 {[%clk 0:00:06]}  Rhd8 {[%clk 0:00:23]} 31. Bg4 {[%clk 0:00:02]}  Rb2+ {[%clk 0:00:19]} 32. Kh3 {[%clk 0:00:03]}  Qd2 {[%clk 0:00:13]} 33. Bxe6 {[%clk 0:00:02]}  Qxh2+ {[%clk 0:00:14]} 34. Kg4 {[%clk 0:00:03]}  Rg2 {[%clk 0:00:14]} 35. Nf5 {[%clk 0:00:01]}  h5+ {[%clk 0:00:10]} 36. Kf3 {[%clk 0:00:02]}  Rf2+ {[%clk 0:00:09]} 37. Ke4 {[%clk 0:00:02]}  Qg2+ {[%clk 0:00:08]} 38. Kd3 {[%clk 0:00:02]}  Rd2+ {[%clk 0:00:09]} 39. Kc3 {[%clk 0:00:02]}  Rc2+ {[%clk 0:00:09]} 40. Kd4 {[%clk 0:00:02]}  Qd2+ {[%clk 0:00:09]} 41. Ke4 {[%clk 0:00:02]}  Qg2+ {[%clk 0:00:07]} 42. Kd3 {[%clk 0:00:01]}  Qe2+ {[%clk 0:00:07]} 43. Kd4 {[%clk 0:00:02]}  Rd2+ {[%clk 0:00:06]} 44. Kc5 {[%clk 0:00:03]}  Qf2+ {[%clk 0:00:06]} 45. Kb4 {[%clk 0:00:03]}  Rb8+ {[%clk 0:00:06]} 46. Kc3 {[%clk 0:00:01]}  Rc2+ {[%clk 0:00:07]} 47. Kd3 {[%clk 0:00:02]}  Qe2+ {[%clk 0:00:07]} 48. Kd4 {[%clk 0:00:02]}  Rd2+ {[%clk 0:00:07]} 49. Kc3 {[%clk 0:00:01]}  Qd3# {[%clk 0:00:07]} 0-1


[Site "https://www.chess.com"]

[Event "Titled Tuesday Blitz August 08 Late 2023"]
[White "Terry, Renato"]
[Black "Gurevich, Dmitry"]
[WhiteFideId "3803457"]
[BlackFideId "2000407"]
[WhiteElo "2919"]
[BlackElo "2477"]
[Result "1-0"]
[Round "5"]
[TimeControl "180+1"]
[Date "2023.08.08"]
[WhiteClock "0:00:46"]
[BlackClock "0:00:00"]
[Board "7"]

1. Nf3 {[%clk 0:03:00]}  d5 {[%clk 0:02:58]} 2. e3 {[%clk 0:03:01]}  e6 {[%clk 0:02:57]} 3. b3 {[%clk 0:03:00]}  c5 {[%clk 0:02:55]} 4. Bb2 {[%clk 0:03:00]}  Nc6 {[%clk 0:02:52]} 5. Bb5 {[%clk 0:02:59]}  Bd7 {[%clk 0:02:52]} 6. O-O {[%clk 0:02:59]}  f6 {[%clk 0:02:52]} 7. d4 {[%clk 0:02:59]}  a6 {[%clk 0:02:48]} 8. Bd3 {[%clk 0:02:59]}  cxd4 {[%clk 0:02:32]} 9. exd4 {[%clk 0:02:58]}  Bd6 {[%clk 0:02:30]} 10. c4 {[%clk 0:02:58]}  Nge7 {[%clk 0:02:27]} 11. Re1 {[%clk 0:02:48]}  O-O {[%clk 0:02:26]} 12. Nc3 {[%clk 0:02:44]}  Rc8 {[%clk 0:02:18]} 13. a3 {[%clk 0:02:39]}  b6 {[%clk 0:02:08]} 14. cxd5 {[%clk 0:02:39]}  exd5 {[%clk 0:02:07]} 15. Bxa6 {[%clk 0:02:39]}  Ra8 {[%clk 0:01:55]} 16. Bd3 {[%clk 0:02:36]}  Bg4 {[%clk 0:01:48]} 17. Nb5 {[%clk 0:02:32]}  Bf4 {[%clk 0:01:43]} 18. h3 {[%clk 0:02:30]}  Bh5 {[%clk 0:01:43]} 19. g3 {[%clk 0:02:13]}  Bb8 {[%clk 0:01:40]} 20. g4 {[%clk 0:02:12]}  Bf7 {[%clk 0:01:32]} 21. Nh4 {[%clk 0:02:12]}  Ng6 {[%clk 0:01:30]} 22. Nxg6 {[%clk 0:02:08]}  hxg6 {[%clk 0:01:26]} 23. b4 {[%clk 0:02:04]}  Na7 {[%clk 0:01:24]} 24. Nc3 {[%clk 0:01:56]}  Qd6 {[%clk 0:01:22]} 25. Qf3 {[%clk 0:01:57]}  Nc6 {[%clk 0:01:17]} 26. Ne2 {[%clk 0:01:55]}  Qh2+ {[%clk 0:01:14]} 27. Kf1 {[%clk 0:01:55]}  Re8 {[%clk 0:01:12]} 28. Qg2 {[%clk 0:01:51]}  Qd6 {[%clk 0:01:05]} 29. Rac1 {[%clk 0:01:51]}  Ra7 {[%clk 0:01:01]} 30. Bb5 {[%clk 0:01:33]}  Rc7 {[%clk 0:00:59]} 31. Rc3 {[%clk 0:01:25]}  g5 {[%clk 0:00:50]} 32. Rec1 {[%clk 0:01:19]}  Rec8 {[%clk 0:00:37]} 33. Ba6 {[%clk 0:01:19]}  Re8 {[%clk 0:00:36]} 34. Bb5 {[%clk 0:01:19]}  Rec8 {[%clk 0:00:36]} 35. Bd3 {[%clk 0:01:19]}  b5 {[%clk 0:00:30]} 36. Qf3 {[%clk 0:01:08]}  Qh2 {[%clk 0:00:24]} 37. Bxb5 {[%clk 0:01:05]}  Bg6 {[%clk 0:00:19]} 38. Qxd5+ {[%clk 0:01:04]}  Kh8 {[%clk 0:00:16]} 39. Qg2 {[%clk 0:01:02]}  Qd6 {[%clk 0:00:14]} 40. Rxc6 {[%clk 0:01:01]}  Rxc6 {[%clk 0:00:10]} 41. Rxc6 {[%clk 0:01:02]}  Rxc6 {[%clk 0:00:09]} 42. Qxc6 {[%clk 0:01:03]}  Qh2 {[%clk 0:00:08]} 43. Qf3 {[%clk 0:00:56]}  Qd6 {[%clk 0:00:07]} 44. Bd3 {[%clk 0:00:53]}  Bf7 {[%clk 0:00:06]} 45. Qe4 {[%clk 0:00:53]}  g6 {[%clk 0:00:05]} 46. d5 {[%clk 0:00:54]}  Kh7 {[%clk 0:00:05]} 47. Nd4 {[%clk 0:00:49]}  Bc7 {[%clk 0:00:04]} 48. Ne6 {[%clk 0:00:49]}  Bb6 {[%clk 0:00:04]} 49. Bxf6 {[%clk 0:00:47]}  Qh2 {[%clk 0:00:00]} 50. Nxg5+ {[%clk 0:00:46]} 1-0


[Site "https://www.chess.com"]

[Event "Titled Tuesday Blitz August 08 Late 2023"]
[White "Paravyan, David"]
[Black "Gadimbayli, Abdulla"]
[WhiteFideId "4194985"]
[BlackFideId "13404938"]
[WhiteElo "3034"]
[BlackElo "2839"]
[Result "1-0"]
[Round "5"]
[TimeControl "180+1"]
[Date "2023.08.08"]
[WhiteClock "0:00:47"]
[BlackClock "0:00:28"]
[Board "9"]

1. e4 {[%clk 0:02:59]}  e5 {[%clk 0:02:55]} 2. Nf3 {[%clk 0:02:59]}  d5 {[%clk 0:02:55]} 3. exd5 {[%clk 0:02:57]}  e4 {[%clk 0:02:56]} 4. Qe2 {[%clk 0:02:57]}  Nf6 {[%clk 0:02:56]} 5. d3 {[%clk 0:02:58]}  Bb4+ {[%clk 0:02:56]} 6. c3 {[%clk 0:02:56]}  O-O {[%clk 0:02:57]} 7. dxe4 {[%clk 0:02:57]}  Bd6 {[%clk 0:02:56]} 8. Nbd2 {[%clk 0:02:51]}  Re8 {[%clk 0:02:56]} 9. c4 {[%clk 0:02:43]}  Nbd7 {[%clk 0:02:48]} 10. Qd1 {[%clk 0:02:40]}  Nxe4 {[%clk 0:02:44]} 11. Be2 {[%clk 0:02:34]}  Nxd2 {[%clk 0:02:20]} 12. Bxd2 {[%clk 0:02:33]}  Qe7 {[%clk 0:02:20]} 13. Be3 {[%clk 0:02:25]}  Bb4+ {[%clk 0:02:20]} 14. Kf1 {[%clk 0:02:24]}  Bc5 {[%clk 0:02:20]} 15. Qb3 {[%clk 0:02:17]}  Nf6 {[%clk 0:02:09]} 16. Bxc5 {[%clk 0:01:58]}  Qxe2+ {[%clk 0:01:38]} 17. Kg1 {[%clk 0:01:57]}  Bg4 {[%clk 0:01:39]} 18. Bd4 {[%clk 0:01:47]}  Bxf3 {[%clk 0:01:12]} 19. gxf3 {[%clk 0:01:48]}  Nh5 {[%clk 0:01:12]} 20. h4 {[%clk 0:01:36]}  Nf4 {[%clk 0:01:03]} 21. Kh2 {[%clk 0:01:35]}  Nd3 {[%clk 0:01:02]} 22. Rhg1 {[%clk 0:01:32]}  c5 {[%clk 0:00:47]} 23. Rxg7+ {[%clk 0:01:22]}  Kf8 {[%clk 0:00:44]} 24. Qxb7 {[%clk 0:01:06]}  Qxf3 {[%clk 0:00:36]} 25. Rg8+ {[%clk 0:00:45]}  Kxg8 {[%clk 0:00:33]} 26. Rg1+ {[%clk 0:00:45]}  Kf8 {[%clk 0:00:33]} 27. Bg7+ {[%clk 0:00:46]}  Kg8 {[%clk 0:00:28]} 28. Be5+ {[%clk 0:00:47]} 1-0


[Site "https://www.chess.com"]

[Event "Titled Tuesday Blitz August 08 Late 2023"]
[White "Holt, Conrad"]
[Black "Fier, Alexandr"]
[WhiteFideId "2034387"]
[BlackFideId "2107139"]
[WhiteElo "2889"]
[BlackElo "2781"]
[Result "1/2-1/2"]
[Round "5"]
[TimeControl "180+1"]
[Date "2023.08.08"]
[WhiteClock "0:01:21"]
[BlackClock "0:02:23"]
[Board "13"]

1. d4 {[%clk 0:03:00]}  Nf6 {[%clk 0:02:59]} 2. c4 {[%clk 0:03:01]}  c5 {[%clk 0:03:00]} 3. d5 {[%clk 0:03:00]}  e6 {[%clk 0:03:01]} 4. Nc3 {[%clk 0:03:00]}  exd5 {[%clk 0:03:01]} 5. cxd5 {[%clk 0:03:01]}  d6 {[%clk 0:03:02]} 6. e4 {[%clk 0:03:01]}  g6 {[%clk 0:03:03]} 7. h3 {[%clk 0:03:01]}  Bg7 {[%clk 0:03:03]} 8. Nf3 {[%clk 0:03:02]}  O-O {[%clk 0:03:03]} 9. Bd3 {[%clk 0:03:02]}  b5 {[%clk 0:03:04]} 10. Bxb5 {[%clk 0:03:00]}  Nxe4 {[%clk 0:03:04]} 11. Nxe4 {[%clk 0:03:00]}  Qa5+ {[%clk 0:03:04]} 12. Nfd2 {[%clk 0:03:01]}  Qxb5 {[%clk 0:03:05]} 13. Nxd6 {[%clk 0:03:01]}  Qa6 {[%clk 0:03:06]} 14. N2c4 {[%clk 0:03:02]}  Nd7 {[%clk 0:03:06]} 15. O-O {[%clk 0:03:01]}  Ne5 {[%clk 0:03:07]} 16. Nxc8 {[%clk 0:03:01]}  Raxc8 {[%clk 0:03:05]} 17. Nxe5 {[%clk 0:03:01]}  Bxe5 {[%clk 0:03:06]} 18. Re1 {[%clk 0:03:01]}  Qd6 {[%clk 0:03:06]} 19. Rb1 {[%clk 0:02:54]}  Rfe8 {[%clk 0:02:48]} 20. Be3 {[%clk 0:02:50]}  Rcd8 {[%clk 0:02:38]} 21. Qa4 {[%clk 0:02:30]}  Qxd5 {[%clk 0:02:34]} 22. Qxa7 {[%clk 0:02:19]}  Bd4 {[%clk 0:02:30]} 23. Bxd4 {[%clk 0:02:05]}  cxd4 {[%clk 0:02:29]} 24. Qa4 {[%clk 0:01:58]}  Rxe1+ {[%clk 0:02:25]} 25. Rxe1 {[%clk 0:01:58]}  d3 {[%clk 0:02:26]} 26. Re8+ {[%clk 0:01:32]}  Rxe8 {[%clk 0:02:26]} 27. Qxe8+ {[%clk 0:01:31]}  Kg7 {[%clk 0:02:27]} 28. Qe1 {[%clk 0:01:26]}  Qxa2 {[%clk 0:02:25]} 29. Qc3+ {[%clk 0:01:24]}  Kg8 {[%clk 0:02:25]} 30. Qxd3 {[%clk 0:01:23]}  Qxb2 {[%clk 0:02:25]} 31. Qe3 {[%clk 0:01:21]}  h5 {[%clk 0:02:23]} 1/2-1/2


[Site "https://www.chess.com"]

[Event "Titled Tuesday Blitz August 08 Late 2023"]
[White "Mitrabha, Guha"]
[Black "Papayan, Oleg"]
[WhiteFideId "5057000"]
[BlackFideId "4193911"]
[WhiteElo "2845"]
[BlackElo "2543"]
[Result "1-0"]
[Round "5"]
[TimeControl "180+1"]
[Date "2023.08.08"]
[WhiteClock "0:00:44"]
[BlackClock "0:00:02"]
[Board "15"]

1. Nf3 {[%clk 0:02:59]}  Nf6 {[%clk 0:02:58]} 2. g3 {[%clk 0:02:59]}  c5 {[%clk 0:02:57]} 3. Bg2 {[%clk 0:02:59]}  Nc6 {[%clk 0:02:58]} 4. O-O {[%clk 0:02:58]}  e5 {[%clk 0:02:58]} 5. c4 {[%clk 0:02:58]}  d5 {[%clk 0:02:58]} 6. cxd5 {[%clk 0:02:58]}  Nxd5 {[%clk 0:02:59]} 7. Nc3 {[%clk 0:02:59]}  Nxc3 {[%clk 0:02:50]} 8. bxc3 {[%clk 0:02:57]}  Be7 {[%clk 0:02:44]} 9. d3 {[%clk 0:02:53]}  O-O {[%clk 0:02:43]} 10. Be3 {[%clk 0:02:54]}  Qc7 {[%clk 0:02:29]} 11. Qa4 {[%clk 0:02:51]}  Bd7 {[%clk 0:02:18]} 12. Qb3 {[%clk 0:02:48]}  b6 {[%clk 0:02:11]} 13. Rac1 {[%clk 0:02:48]}  Be6 {[%clk 0:02:10]} 14. Qb2 {[%clk 0:02:47]}  Qd7 {[%clk 0:01:48]} 15. Rfd1 {[%clk 0:02:43]}  Rac8 {[%clk 0:01:21]} 16. d4 {[%clk 0:02:40]}  cxd4 {[%clk 0:01:17]} 17. cxd4 {[%clk 0:02:40]}  exd4 {[%clk 0:01:15]} 18. Nxd4 {[%clk 0:02:38]}  Nxd4 {[%clk 0:01:13]} 19. Bxd4 {[%clk 0:02:33]}  Rxc1 {[%clk 0:01:13]} 20. Rxc1 {[%clk 0:02:29]}  f6 {[%clk 0:01:11]} 21. Bf3 {[%clk 0:02:22]}  Rc8 {[%clk 0:01:09]} 22. Rxc8+ {[%clk 0:02:20]}  Qxc8 {[%clk 0:01:09]} 23. h4 {[%clk 0:02:21]}  Qc4 {[%clk 0:01:07]} 24. Be3 {[%clk 0:02:06]}  Qxa2 {[%clk 0:01:06]} 25. Qb5 {[%clk 0:02:06]}  Bf8 {[%clk 0:00:30]} 26. Kh2 {[%clk 0:01:59]}  Qb3 {[%clk 0:00:26]} 27. Qa6 {[%clk 0:01:55]}  Qa3 {[%clk 0:00:23]} 28. Qb7 {[%clk 0:01:54]}  Qe7 {[%clk 0:00:23]} 29. Qa8 {[%clk 0:01:54]}  Kf7 {[%clk 0:00:11]} 30. Bf4 {[%clk 0:01:53]}  g6 {[%clk 0:00:11]} 31. Bb8 {[%clk 0:01:51]}  Bc4 {[%clk 0:00:10]} 32. e3 {[%clk 0:01:37]}  a5 {[%clk 0:00:10]} 33. Qc6 {[%clk 0:01:35]}  b5 {[%clk 0:00:08]} 34. Bd5+ {[%clk 0:01:27]}  Bxd5 {[%clk 0:00:08]} 35. Qxd5+ {[%clk 0:01:28]}  Kg7 {[%clk 0:00:06]} 36. Qxb5 {[%clk 0:01:28]}  Qb4 {[%clk 0:00:05]} 37. Qd7+ {[%clk 0:01:27]}  Kg8 {[%clk 0:00:06]} 38. Bc7 {[%clk 0:01:24]}  a4 {[%clk 0:00:06]} 39. Bd8 {[%clk 0:01:24]}  Qd6 {[%clk 0:00:05]} 40. Qxd6 {[%clk 0:01:07]}  Bxd6 {[%clk 0:00:06]} 41. Bxf6 {[%clk 0:01:07]}  a3 {[%clk 0:00:05]} 42. Bc3 {[%clk 0:01:05]}  a2 {[%clk 0:00:02]} 43. Kg2 {[%clk 0:01:04]}  Kf7 {[%clk 0:00:03]} 44. e4 {[%clk 0:00:56]}  Bb4 {[%clk 0:00:01]} 45. Bb2 {[%clk 0:00:55]}  Ke6 {[%clk 0:00:02]} 46. Kf3 {[%clk 0:00:55]}  Be1 {[%clk 0:00:01]} 47. Ke2 {[%clk 0:00:55]}  Bb4 {[%clk 0:00:02]} 48. f4 {[%clk 0:00:53]}  h5 {[%clk 0:00:03]} 49. Kf3 {[%clk 0:00:53]}  Be1 {[%clk 0:00:03]} 50. Ba1 {[%clk 0:00:48]}  Bb4 {[%clk 0:00:03]} 51. g4 {[%clk 0:00:48]}  Be1 {[%clk 0:00:03]} 52. f5+ {[%clk 0:00:47]}  gxf5 {[%clk 0:00:03]} 53. exf5+ {[%clk 0:00:46]}  Kf7 {[%clk 0:00:03]} 54. g5 {[%clk 0:00:45]}  Bxh4 {[%clk 0:00:04]} 55. Kf4 {[%clk 0:00:44]}  Be1 {[%clk 0:00:03]} 56. g6+ {[%clk 0:00:44]}  Kg8 {[%clk 0:00:03]} 57. f6 {[%clk 0:00:45]}  Bb4 {[%clk 0:00:02]} 58. Kg5 {[%clk 0:00:45]}  Bd6 {[%clk 0:00:01]} 59. Kxh5 {[%clk 0:00:45]}  Bf8 {[%clk 0:00:02]} 60. f7# {[%clk 0:00:44]} 1-0


[Site "https://www.chess.com"]

[Event "Titled Tuesday Blitz August 08 Late 2023"]
[White "Vachier-Lagrave, Maxime"]
[Black "Mekhitarian, Krikor Sevag"]
[WhiteFideId "623539"]
[BlackFideId "2107660"]
[WhiteElo "3156"]
[BlackElo "2734"]
[Result "0-1"]
[Round "5"]
[TimeControl "180+1"]
[Date "2023.08.08"]
[WhiteClock "0:00:15"]
[BlackClock "0:00:11"]
[Board "17"]

1. d4 {[%clk 0:03:00]}  Nf6 {[%clk 0:02:58]} 2. c4 {[%clk 0:02:59]}  g6 {[%clk 0:02:58]} 3. Nc3 {[%clk 0:02:59]}  d5 {[%clk 0:02:58]} 4. Qb3 {[%clk 0:02:51]}  dxc4 {[%clk 0:02:55]} 5. Qxc4 {[%clk 0:02:51]}  Bg7 {[%clk 0:02:48]} 6. Bf4 {[%clk 0:02:50]}  c6 {[%clk 0:02:43]} 7. e3 {[%clk 0:02:48]}  O-O {[%clk 0:02:42]} 8. Nf3 {[%clk 0:02:45]}  b5 {[%clk 0:02:27]} 9. Qb3 {[%clk 0:02:44]}  Qa5 {[%clk 0:02:26]} 10. Nd2 {[%clk 0:02:36]}  Be6 {[%clk 0:02:22]} 11. Qc2 {[%clk 0:02:33]}  c5 {[%clk 0:02:20]} 12. dxc5 {[%clk 0:02:21]}  Na6 {[%clk 0:02:20]} 13. Bxb5 {[%clk 0:02:18]}  Nb4 {[%clk 0:02:02]} 14. Qa4 {[%clk 0:02:18]}  Qxa4 {[%clk 0:01:53]} 15. Nxa4 {[%clk 0:02:19]}  Nc2+ {[%clk 0:01:46]} 16. Ke2 {[%clk 0:02:19]}  Nxa1 {[%clk 0:01:44]} 17. Rxa1 {[%clk 0:02:20]}  Nd5 {[%clk 0:01:44]} 18. Bg3 {[%clk 0:02:19]}  Bxb2 {[%clk 0:01:31]} 19. Rb1 {[%clk 0:02:14]}  Bg7 {[%clk 0:01:14]} 20. Ba6 {[%clk 0:02:08]}  Bd7 {[%clk 0:01:06]} 21. Bb7 {[%clk 0:02:07]}  Bxa4 {[%clk 0:01:03]} 22. Bxd5 {[%clk 0:02:08]}  Rac8 {[%clk 0:01:02]} 23. Ne4 {[%clk 0:02:01]}  Bc6 {[%clk 0:01:02]} 24. Bxc6 {[%clk 0:02:00]}  Rxc6 {[%clk 0:01:03]} 25. Rb7 {[%clk 0:02:00]}  f5 {[%clk 0:01:01]} 26. Ng5 {[%clk 0:01:54]}  Bf6 {[%clk 0:00:59]} 27. h4 {[%clk 0:01:49]}  h6 {[%clk 0:00:52]} 28. Nh3 {[%clk 0:01:46]}  Rxc5 {[%clk 0:00:51]} 29. Rxa7 {[%clk 0:01:37]}  Rd8 {[%clk 0:00:47]} 30. Bf4 {[%clk 0:01:20]}  Kg7 {[%clk 0:00:43]} 31. g3 {[%clk 0:01:14]}  Rcd5 {[%clk 0:00:41]} 32. Bc7 {[%clk 0:01:07]}  R8d7 {[%clk 0:00:37]} 33. Nf4 {[%clk 0:01:07]}  Rd2+ {[%clk 0:00:38]} 34. Kf3 {[%clk 0:01:07]}  Kf7 {[%clk 0:00:38]} 35. Bb6 {[%clk 0:00:42]}  Rxa7 {[%clk 0:00:36]} 36. Bxa7 {[%clk 0:00:43]}  Rxa2 {[%clk 0:00:36]} 37. Bb8 {[%clk 0:00:43]}  e5 {[%clk 0:00:35]} 38. Nd5 {[%clk 0:00:42]}  e4+ {[%clk 0:00:33]} 39. Kg2 {[%clk 0:00:43]}  g5 {[%clk 0:00:32]} 40. Nxf6 {[%clk 0:00:35]}  Kxf6 {[%clk 0:00:32]} 41. h5 {[%clk 0:00:36]}  Rc2 {[%clk 0:00:25]} 42. Bd6 {[%clk 0:00:36]}  Kf7 {[%clk 0:00:24]} 43. Be5 {[%clk 0:00:36]}  Rc5 {[%clk 0:00:24]} 44. Bd6 {[%clk 0:00:36]}  Rd5 {[%clk 0:00:24]} 45. Bc7 {[%clk 0:00:36]}  Ke6 {[%clk 0:00:22]} 46. Bb8 {[%clk 0:00:36]}  Rd2 {[%clk 0:00:21]} 47. Bc7 {[%clk 0:00:35]}  Rd7 {[%clk 0:00:19]} 48. Ba5 {[%clk 0:00:33]}  f4 {[%clk 0:00:16]} 49. exf4 {[%clk 0:00:31]}  gxf4 {[%clk 0:00:17]} 50. gxf4 {[%clk 0:00:25]}  Kf5 {[%clk 0:00:17]} 51. Kg3 {[%clk 0:00:19]}  Rg7+ {[%clk 0:00:17]} 52. Kh3 {[%clk 0:00:20]}  Rd7 {[%clk 0:00:14]} 53. Bb6 {[%clk 0:00:16]}  Kxf4 {[%clk 0:00:11]} 54. Be3+ {[%clk 0:00:16]}  Kf3 {[%clk 0:00:11]} 55. Bxh6 {[%clk 0:00:15]}  Rh7 {[%clk 0:00:11]} 0-1


[Site "https://www.chess.com"]

[Event "Titled Tuesday Blitz August 08 Late 2023"]
[White "carokannlover213"]
[Black "Kramnik, Vladimir"]
[BlackFideId "4101588"]
[WhiteElo "2722"]
[BlackElo "2972"]
[Result "0-1"]
[Round "5"]
[TimeControl "180+1"]
[Date "2023.08.08"]
[WhiteClock "0:00:06"]
[BlackClock "0:00:29"]
[Board "21"]

1. e4 {[%clk 0:03:00]}  c5 {[%clk 0:02:59]} 2. Nf3 {[%clk 0:03:00]}  e6 {[%clk 0:02:59]} 3. d4 {[%clk 0:03:00]}  cxd4 {[%clk 0:02:59]} 4. Nxd4 {[%clk 0:03:01]}  Nf6 {[%clk 0:03:00]} 5. Nc3 {[%clk 0:03:01]}  Nc6 {[%clk 0:03:00]} 6. Ndb5 {[%clk 0:02:58]}  d6 {[%clk 0:03:00]} 7. Bf4 {[%clk 0:02:58]}  e5 {[%clk 0:03:01]} 8. Bg5 {[%clk 0:02:58]}  a6 {[%clk 0:03:02]} 9. Na3 {[%clk 0:02:59]}  b5 {[%clk 0:03:02]} 10. Nd5 {[%clk 0:03:00]}  Be7 {[%clk 0:03:02]} 11. Bxf6 {[%clk 0:03:00]}  Bxf6 {[%clk 0:03:02]} 12. c3 {[%clk 0:03:01]}  Rb8 {[%clk 0:03:02]} 13. Nc2 {[%clk 0:03:00]}  Bg5 {[%clk 0:03:02]} 14. a4 {[%clk 0:02:59]}  bxa4 {[%clk 0:03:02]} 15. Ncb4 {[%clk 0:02:59]}  Nxb4 {[%clk 0:03:01]} 16. cxb4 {[%clk 0:03:00]}  O-O {[%clk 0:02:59]} 17. Rxa4 {[%clk 0:02:57]}  a5 {[%clk 0:02:59]} 18. b5 {[%clk 0:02:55]}  Bd7 {[%clk 0:02:59]} 19. Nc3 {[%clk 0:02:56]}  d5 {[%clk 0:02:59]} 20. Nxd5 {[%clk 0:02:54]}  Bxb5 {[%clk 0:02:56]} 21. Bxb5 {[%clk 0:02:55]}  Rxb5 {[%clk 0:02:56]} 22. O-O {[%clk 0:02:52]}  Qb8 {[%clk 0:02:41]} 23. Nc3 {[%clk 0:02:30]}  Rc5 {[%clk 0:02:30]} 24. Qe2 {[%clk 0:02:25]}  Rd8 {[%clk 0:02:23]} 25. Nd5 {[%clk 0:02:25]}  Qb5 {[%clk 0:01:22]} 26. Qxb5 {[%clk 0:02:07]}  Rxb5 {[%clk 0:01:22]} 27. g3 {[%clk 0:02:08]}  Rdb8 {[%clk 0:01:11]} 28. Rfa1 {[%clk 0:02:05]}  Bd8 {[%clk 0:01:09]} 29. Ne3 {[%clk 0:01:44]}  Rxb2 {[%clk 0:01:02]} 30. Nc4 {[%clk 0:01:44]}  Rb1+ {[%clk 0:00:53]} 31. Kg2 {[%clk 0:01:36]}  Rxa1 {[%clk 0:00:46]} 32. Rxa1 {[%clk 0:01:37]}  Ra8 {[%clk 0:00:45]} 33. Nxe5 {[%clk 0:00:57]}  Bf6 {[%clk 0:00:44]} 34. f4 {[%clk 0:00:56]}  a4 {[%clk 0:00:42]} 35. Ra2 {[%clk 0:00:53]}  Bxe5 {[%clk 0:00:42]} 36. fxe5 {[%clk 0:00:54]}  Kf8 {[%clk 0:00:41]} 37. Kf3 {[%clk 0:00:45]}  a3 {[%clk 0:00:41]} 38. Kf4 {[%clk 0:00:38]}  Ke7 {[%clk 0:00:41]} 39. h4 {[%clk 0:00:38]}  Ke6 {[%clk 0:00:36]} 40. g4 {[%clk 0:00:35]}  h6 {[%clk 0:00:35]} 41. g5 {[%clk 0:00:20]}  h5 {[%clk 0:00:35]} 42. g6 {[%clk 0:00:20]}  fxg6 {[%clk 0:00:35]} 43. Kg5 {[%clk 0:00:20]}  Kxe5 {[%clk 0:00:34]} 44. Kxg6 {[%clk 0:00:20]}  Kxe4 {[%clk 0:00:33]} 45. Kxh5 {[%clk 0:00:20]}  Ra6 {[%clk 0:00:32]} 46. Kg5 {[%clk 0:00:09]}  Kd3 {[%clk 0:00:32]} 47. Ra1 {[%clk 0:00:07]}  a2 {[%clk 0:00:31]} 48. h5 {[%clk 0:00:07]}  Kc2 {[%clk 0:00:31]} 49. Rxa2+ {[%clk 0:00:06]}  Rxa2 {[%clk 0:00:30]} 50. Kg6 {[%clk 0:00:07]}  Ra5 {[%clk 0:00:30]} 51. h6 {[%clk 0:00:06]}  gxh6 {[%clk 0:00:29]} 0-1


[Site "https://www.chess.com"]